Workbook

Sheet RAW 10-22-09
A1: MMF | D1: PM Checks
A3: "X"
A5: Undulator | B5: SN 15
A6: Date: | B6: 2009-10-22
A7: Crew: | B7: JM, LG
A9: BUCK IN
A10: Far Value | B10: 0 | C10: PM1 X1
A11: Near Value | B11: 0 | C11: PM 4 X1
A12: 1st Far | B12: 24.839
A13: 1st. Near | B13: 24.84
A14: 2nd. Far | B14: 24.84
A15: 2nd Near | B15: 24.84
A16: Far Should Read | B16: =BuckIn(B10,B11,B12,B13,B14,B15) -> 24.84
A17: Near Should Read | B17: 24.84
A18: LOS | B18: 24.84
A20: Undulator
A23: 1) | B23: 2) | C23: 3) | D23: 4)
A24: 29.329 | B24: 29.335 | C24: 29.326 | D24: 29.323
A25: 1 | B25: 1 | C25: 1 | D25: 1
A26: =SUM(A24:A25) -> 30.329 | B26: =SUM(B24:B25) -> 30.335 | C26: =SUM(C24:C25) -> 30.326 | D26: =SUM(D24:D25) -> 30.323
A27: =B18 -> 24.84 | B27: =B18 -> 24.84 | C27: =B18 -> 24.84 | D27: =B18 -> 24.84
A28: =SUM(A27-A26) -> -5.489 | B28: =SUM(B27-B26) -> -5.495 | C28: =SUM(C27-C26) -> -5.486 | D28: =SUM(D27-D26) -> -5.483
A30: 5) | B30: 6) | C30: 7) | D30: 8)
A31: 19.543 | B31: 19.538 | C31: 19.544 | D31: 19.547
A32: 1 | B32: 1 | C32: 1 | D32: 1
A33: =SUM(A31:A32) -> 20.543 | B33: =SUM(B31:B32) -> 20.538 | C33: =SUM(C31:C32) -> 20.544 | D33: =SUM(D31:D32) -> 20.547
A34: =B18 -> 24.84 | B34: =B18 -> 24.84 | C34: =B18 -> 24.84 | D34: =B18 -> 24.84
A35: =SUM(A34-A33) -> 4.297 | B35: =SUM(B34-B33) -> 4.302 | C35: =SUM(C34-C33) -> 4.296 | D35: =SUM(D34-D33) -> 4.293
B38: Reference | C38: Block
A40: A) | B40: B) | C40: C) | D40: D)
A41: 30.876 | B41: 26.343 | C41: 24.584 | D41: 24.584
A42: 1 | B42: 1 | C42: 1 | D42: 1
A43: =SUM(A41:A42) -> 31.876 | B43: =SUM(B41:B42) -> 27.343 | C43: =SUM(C41:C42) -> 25.584 | D43: =SUM(D41:D42) -> 25.584
A44: =B18 -> 24.84 | B44: =B18 -> 24.84 | C44: =B18 -> 24.84 | D44: =B18 -> 24.84
A45: =SUM(A44-A43) -> -7.036 | B45: =SUM(B44-B43) -> -2.503 | C45: =SUM(C44-C43) -> -0.744 | D45: =SUM(D44-D43) -> -0.744
A51: MMF | D51: PM Checks
A53: "X"
A55: =B18 -> 24.84 | B55: LOS
A56: Undulator | B56: =B5 -> SN 15
A57: Date: | B57: =B6 -> 2009-10-22
A58: Crew: | B58: =B7 -> JM, LG
B61: PM4
A63: X1) Buck In | B63: Y1) | C63: Y2)
B64: 27.44 | C64: 27.443
B65: 1 | C65: 1
B66: =SUM(B64:B65) -> 28.44 | C66: =SUM(C64:C65) -> 28.443
B67: =B18 -> 24.84 | C67: =B18 -> 24.84
A68: 0 | B68: =SUM(B67-B66) -> -3.6 | C68: =SUM(C67-C66) -> -3.603
B71: PM3
A73: X1) | B73: Y1) | C73: Y2)
A74: 25.717 | B74: 29.312 | C74: 29.313
A75: 1 | B75: 1 | C75: 1
A76: =SUM(A74:A75) -> 26.717 | B76: =SUM(B74:B75) -> 30.312 | C76: =SUM(C74:C75) -> 30.313
A77: =B18 -> 24.84 | B77: =B18 -> 24.84 | C77: =B18 -> 24.84
A78: =SUM(A77-A76) -> -1.877 | B78: =SUM(B77-B76) -> -5.472 | C78: =SUM(C77-C76) -> -5.473
B81: PM 2
A82: X1) | B82: Y1) | C82: Y2)
A83: 25.722 | B83: 29.319 | C83: 29.322
A84: 1 | B84: 1 | C84: 1
A85: =SUM(A83:A84) -> 26.722 | B85: =SUM(B83:B84) -> 30.319 | C85: =SUM(C83:C84) -> 30.322
A86: =B18 -> 24.84 | B86: =B18 -> 24.84 | C86: =B18 -> 24.84
A87: =SUM(A86-A85) -> -1.882 | B87: =SUM(B86-B85) -> -5.479 | C87: =SUM(C86-C85) -> -5.482
B90: PM1
A91: X1) Buck In | B91: Y1) | C91: Y2)
B92: 27.438 | C92: 27.438
B93: 1 | C93: 1
B94: =SUM(B92:B93) -> 28.438 | C94: =SUM(C92:C93) -> 28.438
B95: =B18 -> 24.84 | C95: =B18 -> 24.84
A96: 0 | B96: =SUM(B95-B94) -> -3.598 | C96: =SUM(C95-C94) -> -3.598
A101: MMF | D101: PM Checks
A103: "Y" | C103: PM4Y1 | D103: PM1Y1
C104: 9.447 | D104: 9.451
C105: 1 | D105: 1
A106: Undulator | B106: =B5 -> SN 15 | C106: =SUM(C104+C105) -> 10.447 | D106: =SUM(D104+D105) -> 10.451
A107: Date: | B107: =B6 -> 2009-10-22
A108: Crew: | B108: =B7 -> JM, LG
C109: HI = | D109: =AVERAGE(C106,D106) -> 10.449
A111: PM4 | C111: PM3
A113: Y1) | B113: X1) | C113: Y2) | D113: X1
A114: =C104 -> 9.447 | B114: 13.053 | C114: 9.454 | D114: 13.055
A115: 1 | B115: 1 | C115: 1 | D115: 1
A116: =SUM(A114:A115) -> 10.447 | B116: =SUM(B114:B115) -> 14.053 | C116: =SUM(C114:C115) -> 10.454 | D116: =SUM(D114:D115) -> 14.055
A117: =D109 -> 10.449 | B117: =D109 -> 10.449 | C117: =D109 -> 10.449 | D117: =D109 -> 10.449
A118: =SUM(A117-A116) -> 0.002 | B118: =SUM(B117-B116) -> -3.604 | C118: =SUM(C117-C116) -> -0.005 | D118: =SUM(D117-D116) -> -3.606
A121: PM2 | C121: PM1
A123: Y1) | B123: X1) | C123: Y1) | D123: X1)
A124: 9.459 | B124: 13.059 | C124: =D104 -> 9.451 | D124: 13.054
A125: 1 | B125: 1 | C125: 1 | D125: 1
A126: =SUM(A124:A125) -> 10.459 | B126: =SUM(B124:B125) -> 14.059 | C126: =SUM(C124:C125) -> 10.451 | D126: =SUM(D124:D125) -> 14.054
A127: =D109 -> 10.449 | B127: =D109 -> 10.449 | C127: =D109 -> 10.449 | D127: =D109 -> 10.449
A128: =SUM(A127-A126) -> -0.01 | B128: =SUM(B127-B126) -> -3.61 | C128: =SUM(C127-C126) -> -0.002 | D128: =SUM(D127-D126) -> -3.605
A135: Top Of Gage Block | C135: Probe Location in (X)
A137: 14.846 | C137: -5.464 | D137: LOS
A138: =D109 -> 10.449 | C138: 0.038 | D138: Mic To Plus Edge
A139: =SUM(A138-A137) -> -4.397 | C139: =SUM(C137+C138) -> -5.426
C140: -0.039
C141: =(C139+C140) -> -5.465 | D141: Probe Location
A151: MMF | D151: PM Checks
A153: "Y"
A155: Undulator | B155: =B5 -> SN 15
A156: Date: | B156: =B6 -> 2009-10-22
A157: Crew: | B157: =B7 -> JM, LG
A160: HI = | B160: =D109 -> 10.449
A162: Undulator
A164: 1) | B164: 2) | C164: 3) | D164: 4)
A165: 5.966 | B165: 5.97 | C165: 5.975 | D165: 5.975
A166: 1 | B166: 1 | C166: 1 | D166: 1
A167: =SUM(A165:A166) -> 6.966 | B167: =SUM(B165:B166) -> 6.97 | C167: =SUM(C165:C166) -> 6.975 | D167: =SUM(D165:D166) -> 6.975
A168: =D109 -> 10.449 | B168: =D109 -> 10.449 | C168: =D109 -> 10.449 | D168: =D109 -> 10.449
A169: =SUM(A168-A167) -> 3.483 | B169: =SUM(B168-B167) -> 3.479 | C169: =SUM(C168-C167) -> 3.474 | D169: =SUM(D168-D167) -> 3.474
A172: 5) | B172: 6) | C172: 7) | D172: 8)
A173: 13.05 | B173: 13.055 | C173: 13.057 | D173: 13.061
A174: 1 | B174: 1 | C174: 1 | D174: 1
A175: =SUM(A173+A174) -> 14.05 | B175: =SUM(B173+B174) -> 14.055 | C175: =SUM(C173+C174) -> 14.057 | D175: =SUM(D173+D174) -> 14.061
A176: =D109 -> 10.449 | B176: =D109 -> 10.449 | C176: =D109 -> 10.449 | D176: =D109 -> 10.449
A177: =SUM(A176-A175) -> -3.601 | B177: =SUM(B176-B175) -> -3.606 | C177: =SUM(C176-C175) -> -3.608 | D177: =SUM(D176-D175) -> -3.612
A181: Reference Block
A183: A) | B183: B) | C183: C) | D183: D)
A184: 9.687 | C184: 11.934 | D184: 14.914
A185: 1 | C185: 1 | D185: 1
A186: =SUM(A184+A185) -> 10.687 | C186: =SUM(C184+C185) -> 12.934 | D186: =SUM(D184+D185) -> 15.914
A187: =D109 -> 10.449 | C187: =D109 -> 10.449 | D187: =D109 -> 10.449
A188: =SUM(A187-A186) -> -0.238 | B188: 0 | C188: =SUM(C187-C186) -> -2.485 | D188: =SUM(D187-D186) -> -5.465
A191: Flats
A193: U/S | C193: D/S
A194: (+) | B194: (-) | C194: (+) | D194: (-)
A195: 8.736 | B195: 8.737 | C195: 8.739 | D195: 8.739
A196: =D109 -> 10.449 | B196: =D109 -> 10.449 | C196: =D109 -> 10.449 | D196: =D109 -> 10.449
A197: =SUM(A196-A195) -> 1.713 | B197: =SUM(B196-B195) -> 1.712 | C197: =SUM(C196-C195) -> 1.71 | D197: =SUM(D196-D195) -> 1.71

Sheet MMF 10-22-09
A2: Undulator | C2: ='RAW 10-22-09'!B5 -> SN 15
A3: Date | C3: ='RAW 10-22-09'!B6 -> 2009-10-22
A4: Crew | C4: ='RAW 10-22-09'!B7 -> JM, LG
A7: Undulator Values
A9: TB | B9: Y (in) | C9: Y (mm) | F9: TB | G9: X (in) | H9: X (mm)
A10: 1 | B10: ='RAW 10-22-09'!A169 -> 3.483 | C10: =B10*25.4 -> 88.4682 | F10: 5 | G10: ='RAW 10-22-09'!A35 -> 4.297 | H10: =G10*25.4 -> 109.1438
A11: 2 | B11: ='RAW 10-22-09'!B169 -> 3.479 | C11: =B11*25.4 -> 88.3666 | F11: 6 | G11: ='RAW 10-22-09'!B35 -> 4.302 | H11: =G11*25.4 -> 109.2708
A12: 3 | B12: ='RAW 10-22-09'!C169 -> 3.474 | C12: =B12*25.4 -> 88.2396 | F12: 7 | G12: ='RAW 10-22-09'!C35 -> 4.296 | H12: =G12*25.4 -> 109.1184
A13: 4 | B13: ='RAW 10-22-09'!D169 -> 3.474 | C13: =B13*25.4 -> 88.2396 | F13: 8 | G13: ='RAW 10-22-09'!D35 -> 4.293 | H13: =G13*25.4 -> 109.0422
A16: PM Values
C18: Upstream | E18: (PM 3) | G18: Checks
A19: TB | B19: X (in) | C19: Y (in) | D19: X (mm) | E19: Y (mm) | G19: X (mm) | H19: Y (mm)
A20: Y2 | B20: ='RAW 10-22-09'!C78 -> -5.473 | C20: ='RAW 10-22-09'!C118 -> -0.005 | D20: =B20*25.4 -> -139.0142 | E20: =C20*25.4 -> -0.127 | G20: =H10-D21 -> 156.8196 | H20: =C10-E20 -> 88.5952
A21: X1 | B21: ='RAW 10-22-09'!A78 -> -1.877 | C21: ='RAW 10-22-09'!D118 -> -3.606 | D21: =B21*25.4 -> -47.6758 | E21: =C21*25.4 -> -91.5924
A22: Y1 | B22: ='RAW 10-22-09'!B78 -> -5.472 | D22: =B22*25.4 -> -138.9888
C24: Downstream | E24: (PM 2) | G24: Checks
A25: TB | B25: X (in) | C25: Y (in) | D25: X (mm) | E25: Y (mm) | G25: X (mm) | H25: Y (mm)
A26: Y1 | B26: ='RAW 10-22-09'!B87 -> -5.479 | C26: ='RAW 10-22-09'!A128 -> -0.01 | D26: =B26*25.4 -> -139.1666 | E26: =C26*25.4 -> -0.254 | G26: =H13-D27 -> 156.845 | H26: =C13-E26 -> 88.4936
A27: X1 | B27: ='RAW 10-22-09'!A87 -> -1.882 | C27: ='RAW 10-22-09'!B128 -> -3.61 | D27: =B27*25.4 -> -47.8028 | E27: =C27*25.4 -> -91.694
A28: Y2 | B28: ='RAW 10-22-09'!C87 -> -5.482 | C28: \ | D28: =B28*25.4 -> -139.2428
B33: Probe | F33: Flats
B35: X (in) | C35: X (mm) | F35: Y(in) | G35: Y(mm)
B36: ='RAW 10-22-09'!C141 -> -5.465 | C36: =B36*25.4 -> -138.811 | E36: US + | F36: ='RAW 10-22-09'!A197 -> 1.713 | G36: =F36*25.4 -> 43.5102
E37: US - | F37: ='RAW 10-22-09'!B197 -> 1.712 | G37: =F37*25.4 -> 43.4848
E38: DS + | F38: ='RAW 10-22-09'!C197 -> 1.71 | G38: =F38*25.4 -> 43.434
C39: Top of Gage Block | E39: DS - | F39: ='RAW 10-22-09'!D197 -> 1.71 | G39: =F39*25.4 -> 43.434
B41: Y (in) | C41: Y (mm)
B42: ='RAW 10-22-09'!A139 -> -4.397 | C42: =B42*25.4 -> -111.6838

Sheet AEG 10-22-09
A2: Undulator | C2: ='RAW 10-22-09'!B5 -> SN 15
A3: Date | C3: ='RAW 10-22-09'!B6 -> 2009-10-22
A4: Crew | C4: ='RAW 10-22-09'!B7 -> JM, LG
C7: Undulator Values
A9: TB | B9: X (in) | C9: Y (in) | D9: X (mm) | E9: Y (mm) | G9: Probe
A10: 1 | B10: ='RAW 10-22-09'!A28 -> -5.489 | C10: ='RAW 10-22-09'!A169 -> 3.483 | D10: =SUM(B10*25.4) -> -139.4206 | E10: =SUM(D10*25.4) -> -3541.28324
A11: 2 | B11: ='RAW 10-22-09'!B28 -> -5.495 | C11: ='RAW 10-22-09'!B169 -> 3.479 | D11: =SUM(B11*25.4) -> -139.573 | E11: =SUM(D11*25.4) -> -3545.1542 | G11: X (in) | H11: X (mm)
A12: 3 | B12: ='RAW 10-22-09'!C28 -> -5.486 | C12: ='RAW 10-22-09'!C169 -> 3.474 | D12: -139.3444 | E12: -3539.34776 | G12: ='RAW 10-22-09'!C141 -> -5.465 | H12: =SUM(G12*25.4) -> -138.811
A13: 4 | B13: ='RAW 10-22-09'!D28 -> -5.483 | C13: ='RAW 10-22-09'!D169 -> 3.474 | D13: -139.2682 | E13: -3537.41228
A14: 5 | B14: ='RAW 10-22-09'!A35 -> 4.297 | C14: ='RAW 10-22-09'!A177 -> -3.601 | D14: 109.1438 | E14: 2772.25252
A15: 6 | B15: ='RAW 10-22-09'!B35 -> 4.302 | C15: ='RAW 10-22-09'!B177 -> -3.606 | D15: 109.2708 | E15: 2775.47832 | G15: Top of Gage Block
A16: 7 | B16: ='RAW 10-22-09'!C35 -> 4.296 | C16: ='RAW 10-22-09'!C177 -> -3.608 | D16: 109.1184 | E16: 2771.60736
A17: 8 | B17: ='RAW 10-22-09'!D35 -> 4.293 | C17: ='RAW 10-22-09'!D177 -> -3.612 | D17: 109.0422 | E17: 2769.67188 | G17: Y (in) | H17: Y (mm)
G18: ='RAW 10-22-09'!A139 -> -4.397 | H18: =SUM(G18*25.4) -> -111.6838
C19: Undulator PM Values
C21: Upstream | E21: (PM 3)
A22: TB | B22: X (in) | C22: Y (in) | D22: X (mm) | E22: Y (mm) | G22: Flats
A23: Y2 | B23: ='RAW 10-22-09'!A78 -> -1.877 | C23: ='RAW 10-22-09'!C118 -> -0.005 | D23: =SUM(B23*25.4) -> -47.6758 | E23: =SUM(C23*25.4) -> -0.127
A24: X1 | B24: ='RAW 10-22-09'!A78 -> -1.877 | C24: ='RAW 10-22-09'!D118 -> -3.606 | D24: =SUM(B24*25.4) -> -47.6758 | E24: =SUM(C24*25.4) -> -91.5924 | H24: Y(in) | I24: Y(mm)
A25: Y1 | B25: ='RAW 10-22-09'!B78 -> -5.472 | D25: =SUM(B25*25.4) -> -138.9888 | G25: US + | H25: ='RAW 10-22-09'!A197 -> 1.713 | I25: =SUM(H25*25.4) -> 43.5102
G26: US - | H26: ='RAW 10-22-09'!B197 -> 1.712 | I26: =SUM(H26*25.4) -> 43.4848
C27: Downstream | E27: (PM 2) | G27: DS + | H27: ='RAW 10-22-09'!C197 -> 1.71 | I27: =SUM(H27*25.4) -> 43.434
A28: TB | B28: X (in) | C28: Y (in) | D28: X (mm) | E28: Y (mm) | G28: DS - | H28: ='RAW 10-22-09'!D197 -> 1.71 | I28: =SUM(H28*25.4) -> 43.434
A29: Y1 | B29: ='RAW 10-22-09'!B87 -> -5.479 | C29: ='RAW 10-22-09'!A128 -> -0.01 | D29: =SUM(B29*25.4) -> -139.1666 | E29: =SUM(C29*25.4) -> -0.254
A30: X1 | B30: ='RAW 10-22-09'!A87 -> -1.882 | C30: ='RAW 10-22-09'!B128 -> -3.61 | D30: =SUM(B30*25.4) -> -47.8028 | E30: =SUM(C30*25.4) -> -91.694
A31: Y2 | B31: ='RAW 10-22-09'!C87 -> -5.482 | D31: =SUM(B31*25.4) -> -139.2428
C33: Ref. PM Values
C35: Upstream | E35: (PM 4)
A36: TB | B36: X (in) | C36: Y (in) | D36: X (mm) | E36: Y (mm)
A37: Y1 | B37: ='RAW 10-22-09'!B68 -> -3.6 | C37: ='RAW 10-22-09'!A118 -> 0.002 | D37: =SUM(B37*25.4) -> -91.44 | E37: =SUM(C37*25.4) -> 0.0508
A38: X1 | B38: 0 | C38: ='RAW 10-22-09'!B118 -> -3.604 | D38: 0 | E38: =SUM(C38*25.4) -> -91.5416
A39: Y2 | B39: ='RAW 10-22-09'!C68 -> -3.603 | D39: =SUM(B39*25.4) -> -91.5162
C41: Downstream | E41: (PM 1)
A42: TB | B42: X (in) | C42: Y (in) | D42: X (mm) | E42: Y (mm)
A43: Y1 | B43: ='RAW 10-22-09'!B96 -> -3.598 | C43: ='RAW 10-22-09'!C128 -> -0.002 | D43: =SUM(B43*25.4) -> -91.3892 | E43: =SUM(C43*25.4) -> -0.0508
A44: X1 | B44: 0 | C44: ='RAW 10-22-09'!D128 -> -3.605 | D44: 0 | E44: =SUM(C44*25.4) -> -91.567
A45: Y2 | B45: ='RAW 10-22-09'!C96 -> -3.598 | D45: =SUM(B45*25.4) -> -91.3892
C47: Ref. Block
A48: TB | B48: X (in) | C48: Y (in) | D48: X (mm) | E48: Y (mm)
A49: A | B49: ='RAW 10-22-09'!A45 -> -7.036 | C49: ='RAW 10-22-09'!A188 -> -0.238 | D49: =SUM(B49*25.4) -> -178.7144 | E49: =SUM(C49*25.4) -> -6.0452
A50: B | B50: ='RAW 10-22-09'!B45 -> -2.503 | D50: =SUM(B50*25.4) -> -63.5762
A51: C | B51: ='RAW 10-22-09'!C45 -> -0.744 | C51: ='RAW 10-22-09'!C188 -> -2.485 | D51: =SUM(B51*25.4) -> -18.8976 | E51: =SUM(C51*25.4) -> -63.119
A52: D | B52: ='RAW 10-22-09'!D45 -> -0.744 | C52: ='RAW 10-22-09'!D188 -> -5.465 | D52: =SUM(B52*25.4) -> -18.8976 | E52: =SUM(C52*25.4) -> -138.811
